fUSD/lending_fUSD_20250113
["ID","MTS","AMOUNT","RATE_DAILY","PERIOD"]
[348701061,1736727047146,-500.0,0.00010269,2]
[348701062,1736727047155,-500.0,0.00010269,2]
[348701063,1736727047165,-500.0,0.00010269,2]
[348701064,1736727047175,-2014.15,0.00010269,2]
[348701065,1736727047184,-638.61,0.00010269,2]
[348701066,1736727047194,-500.0,0.00010269,2]
[348701067,1736727047203,-717.21,0.00010269,2]
[348701068,1736727047212,-801.38,0.00010269,2]
[348701069,1736727047221,-758.49,0.00010269,2]
[348701070,1736727047231,-500.0,0.00010269,2]
[348701071,1736727047243,-500.0,0.00010269,2]
[348701072,1736727047253,-680.21,0.00010269,2]
[348701073,1736727047263,-500.0,0.00010269,2]
[348701074,1736727047273,-500.0,0.00010269,2]
[348701075,1736727047282,-500.0,0.00010269,2]
[348701076,1736727047293,-500.0,0.00010269,2]
[348701077,1736727047305,-500.0,0.00010269,2]
[348701078,1736727047317,-1390.21,0.00010269,2]
[348701079,1736727047327,-500.0,0.00010269,2]
[348701080,1736727047337,-500.0,0.00010269,2]
[348701081,1736727047348,-500.0,0.00010269,2]
[348701082,1736727047357,-500.0,0.00010269,2]
[348701083,1736727047366,-500.0,0.00010269,2]
[348701084,1736727047376,-500.0,0.00010269,2]
[348701085,1736727047386,-500.0,0.00010269,2]
[348701086,1736727047395,-500.0,0.00010269,2]
[348701087,1736727047406,-851.85,0.00010269,2]
[348701088,1736727047417,-500.0,0.00010269,2]
[348701089,1736727047426,-500.0,0.00010269,2]
[348701090,1736727047436,-503.63,0.00010269,2]
[348701091,1736727047445,-2088.29,0.00010269,2]
[348701092,1736727047455,-500.0,0.00010269,2]
[348701093,1736727047464,-500.0,0.00010269,2]
[348701094,1736727047473,-500.0,0.00010269,2]
[348701095,1736727047483,-2207.3,0.00010269,2]
[348701096,1736727047492,-500.0,0.00010269,2]
[348701097,1736727047502,-500.0,0.00010269,2]
[348701098,1736727047512,-500.0,0.00010269,2]
[348701099,1736727047521,-500.0,0.00010269,2]
[348701100,1736727047530,-500.0,0.00010269,2]
[348701101,1736727047540,-500.0,0.00010269,2]
[348701102,1736727047549,-500.0,0.00010269,2]
[348701103,1736727047558,-500.0,0.00010269,2]
[348701104,1736727047567,-500.0,0.00010269,2]
[348701105,1736727047576,-902.21,0.00010269,2]
[348701106,1736727047586,-548.52,0.00010269,2]
[348701107,1736727047595,-500.0,0.00010269,2]
[348701108,1736727047604,-500.0,0.00010269,2]
[348701109,1736727047614,-500.0,0.00010269,2]
[348701110,1736727047623,-500.0,0.00010269,2]
[348701111,1736727047632,-2078.81,0.00010269,2]
[348701112,1736727047641,-500.0,0.00010269,2]
[348701113,1736727047651,-514.83,0.00010269,2]
[348701114,1736727047661,-500.0,0.00010269,2]
[348701115,1736727047675,-500.0,0.00010269,2]
[348701116,1736727047684,-500.0,0.00010269,2]
[348701117,1736727047693,-500.0,0.00010269,2]
[348701118,1736727047702,-500.0,0.00010269,2]
[348701119,1736727047712,-500.0,0.00010269,2]
[348701120,1736727047723,-607.65,0.00010269,2]
[348701121,1736727047732,-500.0,0.00010269,2]
[348701122,1736727047742,-500.0,0.00010269,2]
[348701123,1736727047751,-500.0,0.00010269,2]
[348701124,1736727047762,-586.8,0.00010269,2]
[348701125,1736727047771,-500.0,0.00010269,2]
[348701126,1736727047781,-500.0,0.00010269,2]
[348701127,1736727047790,-973.35,0.00010269,2]
[348701128,1736727047800,-500.0,0.00010269,2]
[348701129,1736727047810,-500.0,0.00010269,2]
[348701130,1736727047819,-767.01,0.00010269,2]
[348701131,1736727047829,-500.0,0.00010269,2]
[348701132,1736727047838,-562.52,0.00010269,2]
[348701133,1736727047848,-898.1,0.00010269,2]
[348701134,1736727047857,-1138.74,0.00010269,2]
[348701135,1736727047867,-500.0,0.00010269,2]
[348701136,1736727047877,-212541.4043285,0.00010269,2]
[348701137,1736727047887,-1885.88800854,0.00010269,2]
[348701138,1736727047897,-418.210191,0.0001027,2]
[348701139,1736727047906,-342.452523,0.0001027,2]
[348701140,1736727047917,-500.0,0.0001027,2]
[348701141,1736727047927,-500.0,0.0001027,2]
[348701142,1736727047936,-506.90764995,0.0001027,2]
[348701143,1736727047946,-500.0,0.0001027,2]
[348701144,1736727047955,-500.0,0.0001027,2]
[348701145,1736727047964,-515.11272573,0.0001027,2]
[348701146,1736727047973,-500.0,0.0001027,2]
[348701147,1736727047982,-500.0,0.0001027,2]
[348701148,1736727047992,-500.0,0.0001027,2]
[348701149,1736727048001,-500.0,0.0001027,2]
[348701150,1736727048011,-500.0,0.0001027,2]
[348701151,1736727048022,-500.0,0.0001027,2]
[348701152,1736727048031,-500.0,0.0001027,2]
[348701153,1736727048041,-500.0,0.0001027,2]
[348701154,1736727048051,-500.0,0.0001027,2]
[348701155,1736727048061,-500.0,0.0001027,2]
[348701156,1736727048071,-500.0,0.0001027,2]
[348701157,1736727048082,-500.0,0.0001027,2]
[348701158,1736727048091,-534.18129167,0.0001027,2]
[348701159,1736727048101,-500.0,0.0001027,2]
[348701160,1736727048110,-595.25152967,0.0001027,2]
[348701161,1736727048120,-500.0,0.0001027,2]
[348701162,1736727048130,-500.0,0.0001027,2]
[348701163,1736727048140,-500.0,0.0001027,2]
[348701164,1736727048151,-500.0,0.0001027,2]
[348701165,1736727048161,-500.0,0.0001027,2]
[348701166,1736727048171,-500.0,0.0001027,2]
[348701167,1736727048180,-500.0,0.0001027,2]
[348701168,1736727048189,-500.0,0.0001027,2]
[348701169,1736727048199,-500.0,0.0001027,2]
[348701170,1736727048208,-535.57388979,0.0001027,2]
[348701171,1736727048218,-500.0,0.0001027,2]
[348701172,1736727048229,-156.26,0.0001027,2]
[348701173,1736727048238,-500.0,0.0001027,2]
[348701174,1736727048248,-500.0,0.0001027,2]
[348701175,1736727048257,-500.0,0.0001027,2]
[348701176,1736727048267,-500.0,0.0001027,2]
[348701177,1736727048276,-2051.84,0.0001027,2]
[348701178,1736727048287,-884.25,0.0001027,2]
[348701179,1736727048296,-1346.24,0.0001027,2]
[348701180,1736727048307,-530.04,0.0001027,2]
[348701181,1736727048317,-858.76,0.0001027,2]
[348701182,1736727048326,-500.0,0.0001027,2]
[348701183,1736727048336,-500.0,0.0001027,2]
[348701184,1736727048346,-1142.46,0.0001027,2]
[348701185,1736727048355,-500.0,0.0001027,2]
[348701186,1736727048365,-1264.75,0.00010271,2]
[348701187,1736727048375,-500.0,0.00010271,2]
[348701188,1736727048385,-526.79,0.00010271,2]
[348701189,1736727048394,-760.11,0.00010271,2]
[348701190,1736727048404,-823.3,0.00010271,2]
[348701191,1736727048414,-500.0,0.00010271,2]
[348701192,1736727048423,-1000.0,0.00010271,2]
[348701193,1736727048433,-668.36,0.00010271,2]
[348701194,1736727048442,-500.0,0.00010271,2]
[348701195,1736727048452,-1202.09,0.00010271,2]
[348701196,1736727048463,-1043.38,0.00010271,2]
[348701197,1736727048473,-774.84,0.00010273,2]
[348701198,1736727048482,-687.44,0.00010273,2]
[348701199,1736727048492,-500.0,0.00010273,2]
[348701200,1736727048502,-500.0,0.00010273,2]
[348701201,1736727048515,-817.27,0.00010273,2]
[348701202,1736727048525,-656.31,0.00010273,2]
[348701203,1736727048535,-907.21,0.00010273,2]
[348701204,1736727048545,-567.16,0.00010273,2]
[348701205,1736727048554,-960.51,0.00010273,2]
[348701206,1736727048564,-1054.29,0.00010273,2]
[348701207,1736727048575,-1009.53,0.00010273,2]
[348701208,1736727048781,-1489.54,0.00010273,2]
[348701209,1736727048798,-3214.17,0.00010273,2]
[348701210,1736727048808,-694.36,0.00010273,2]
[348701211,1736727048818,-500.0,0.00010273,2]
[348701212,1736727048828,-505.41,0.00010273,2]
[348701213,1736727048837,-1268.0,0.00010323,2]
[348701214,1736727048847,-393.5828982,0.00010374,2]
[348701215,1736727048856,-500.0,0.0001041,2]
[348701216,1736727048866,-733.8,0.0001042,2]
[348701217,1736727048875,-151.49,0.000105,2]
[348701218,1736727048885,-1000.0,0.00010521,2]
[348701219,1736727048894,-500.0,0.00010539,2]
[348701220,1736727048903,-927.13,0.00010539,2]
[348701221,1736727048912,-2502.78,0.00010539,2]
[348701222,1736727048922,-500.0,0.00010539,2]
[348701223,1736727048931,-500.0,0.00010539,2]
[348701224,1736727048940,-522.99,0.00010539,2]
[348701225,1736727048949,-566.89,0.00010539,2]
[348701226,1736727048958,-893.8,0.00010539,2]
[348701227,1736727048968,-1970.36,0.00010539,2]
[348701228,1736727048978,-500.0,0.00010539,2]
[348701229,1736727048987,-1370.66,0.00010539,2]
[348701230,1736727048997,-539.57,0.00010539,2]
[348701231,1736727049009,-1331.9,0.00010539,2]
[348701232,1736727049019,-964.02,0.00010539,2]
[348701233,1736727049028,-500.0,0.00010539,2]
[348701234,1736727049038,-500.0,0.00010539,2]
[348701235,1736727049048,-880.61,0.00010539,2]
[348701236,1736727049057,-500.0,0.00010539,2]
[348701237,1736727049068,-500.0,0.00010539,2]
[348701238,1736727049077,-562.92,0.00010539,2]
[348701239,1736727049086,-1494.44,0.00010539,2]
[348701240,1736727049096,-628.89,0.00010539,2]
[348701241,1736727049105,-500.0,0.00010539,2]
[348701242,1736727049114,-820.76,0.00010539,2]
[348701243,1736727049124,-612.88,0.00010539,2]
[348701244,1736727049133,-500.0,0.00010539,2]
[348701245,1736727049142,-500.0,0.00010539,2]
[348701246,1736727049151,-1027.38,0.00010539,2]
[348701247,1736727049160,-500.0,0.00010539,2]
[348701248,1736727049170,-598.5,0.00010539,2]
[348701249,1736727049179,-500.0,0.00010539,2]
[348701250,1736727049188,-500.0,0.00010539,2]
[348701251,1736727049197,-534.57,0.00010539,2]
[348701252,1736727049207,-538.66,0.00010539,2]
[348701253,1736727049216,-628.2,0.00010539,2]
[348701254,1736727049226,-500.0,0.00010539,2]
[348701255,1736727049235,-524.03,0.00010539,2]
[348701256,1736727049245,-1147.37,0.00010539,2]
[348701257,1736727049254,-500.0,0.0001054,2]
[348701258,1736727049265,-500.0,0.0001054,2]
[348701259,1736727049275,-505.08,0.0001054,2]
[348701260,1736727049285,-500.0,0.0001054,2]
[348701261,1736727049294,-500.0,0.0001054,2]
[348701262,1736727049304,-504.02,0.0001054,2]
[348701263,1736727049313,-511.77,0.0001054,2]
[348701264,1736727049323,-500.0,0.0001054,2]
[348701265,1736727049333,-500.0,0.0001054,2]
[348701266,1736727049342,-500.0,0.0001054,2]
[348701267,1736727049352,-426.65979373,0.0001054,2]
[348701268,1736727049361,-500.0,0.0001054,2]
[348701269,1736727049370,-500.0,0.0001054,2]
[348701270,1736727049380,-500.0,0.0001054,2]
[348701271,1736727049390,-500.0,0.0001054,2]
[348701272,1736727049399,-500.0,0.0001054,2]
[348701273,1736727049408,-500.0,0.0001054,2]
[348701274,1736727049418,-500.0,0.0001054,2]
[348701275,1736727049427,-500.0,0.0001054,2]
[348701276,1736727049437,-331.51225342,0.0001054,2]
[348701277,1736727049447,-500.0,0.0001054,2]
[348701278,1736727049456,-500.0,0.0001054,2]
[348701279,1736727049465,-500.0,0.0001054,2]
[348701280,1736727049474,-500.0,0.0001054,2]
[348701281,1736727049483,-500.0,0.0001054,2]
[348701282,1736727049493,-500.0,0.0001054,2]
[348701283,1736727049502,-500.0,0.0001054,2]
[348701284,1736727049513,-500.0,0.0001054,2]
[348701285,1736727049522,-500.0,0.0001054,2]
[348701286,1736727049531,-500.0,0.0001054,2]
[348701287,1736727049540,-500.0,0.0001054,2]
[348701288,1736727049550,-503.16,0.0001054,2]
[348701289,1736727049558,-500.0,0.0001054,2]
[348701290,1736727049567,-500.0,0.0001054,2]
[348701291,1736727049577,-500.0,0.0001054,2]
[348701292,1736727049586,-500.0,0.0001054,2]
[348701293,1736727049595,-510.77,0.0001054,2]
[348701294,1736727049604,-500.0,0.0001054,2]
[348701295,1736727049613,-500.0,0.0001054,2]
[348701296,1736727049623,-500.0,0.0001054,2]
[348701297,1736727049632,-500.0,0.0001054,2]
[348701298,1736727049641,-500.0,0.0001054,2]
[348701299,1736727049650,-500.0,0.0001054,2]
[348701300,1736727049659,-500.0,0.0001054,2]
[348701301,1736727049670,-500.0,0.0001054,2]
[348701302,1736727049680,-500.0,0.0001054,2]
[348701303,1736727049690,-500.0,0.0001054,2]
[348701304,1736727049699,-500.0,0.0001054,2]
[348701305,1736727049708,-500.0,0.0001054,2]
[348701306,1736727049718,-500.0,0.0001054,2]
[348701307,1736727049727,-500.0,0.0001054,2]
[348701308,1736727049737,-500.0,0.0001054,2]
[348701309,1736727049746,-500.0,0.0001054,2]
[348701310,1736727049755,-500.0,0.0001054,2]
[348701311,1736727049767,-500.0,0.0001054,2]
[348701312,1736727049776,-500.0,0.0001054,2]
[348701313,1736727049786,-500.0,0.0001054,2]
[348701314,1736727049795,-237.11856806,0.0001054,2]
[348701315,1736727049804,-500.0,0.0001054,2]
[348701316,1736727049813,-500.0,0.0001054,2]
[348701317,1736727049823,-1895.08,0.0001054,2]
[348701318,1736727049832,-500.0,0.0001054,2]
[348701319,1736727049842,-500.0,0.0001054,2]
[348701320,1736727049851,-500.0,0.0001054,2]
[348701321,1736727049860,-500.0,0.0001054,2]
[348701322,1736727049870,-1390.54,0.0001054,2]
[348701323,1736727049879,-500.0,0.0001054,2]
[348701324,1736727049888,-440.12296109,0.0001054,2]
[348701325,1736727049897,-500.0,0.0001054,2]
[348701326,1736727049906,-500.0,0.0001054,2]
[348701327,1736727049915,-500.0,0.0001054,2]
[348701328,1736727049925,-500.0,0.0001054,2]
[348701329,1736727049934,-1640.42,0.0001054,2]
[348701330,1736727049943,-500.0,0.0001054,2]
[348701331,1736727049952,-540.12,0.0001054,2]
[348701332,1736727049961,-500.0,0.0001054,2]
[348701333,1736727049970,-500.0,0.0001054,2]
[348701334,1736727049979,-500.0,0.0001054,2]
[348701335,1736727049988,-500.0,0.0001054,2]
[348701336,1736727049997,-500.0,0.0001054,2]
[348701337,1736727050006,-500.0,0.0001054,2]
[348701338,1736727050019,-500.0,0.0001054,2]
[348701339,1736727050028,-500.0,0.0001054,2]
[348701340,1736727050037,-500.0,0.0001054,2]
[348701341,1736727050046,-500.0,0.0001054,2]
[348701342,1736727050055,-500.0,0.0001054,2]
[348701343,1736727050064,-541.43,0.0001054,2]
[348701344,1736727050073,-500.0,0.0001054,2]
[348701345,1736727050083,-500.0,0.0001054,2]
[348701346,1736727050092,-618.31,0.0001054,2]
[348701347,1736727050103,-500.0,0.0001054,2]
[348701348,1736727050112,-500.0,0.0001054,2]
[348701349,1736727050123,-500.0,0.0001054,2]
[348701350,1736727050133,-500.0,0.0001054,2]
[348701351,1736727050142,-500.0,0.0001054,2]
[348701352,1736727050153,-500.0,0.0001054,2]
[348701353,1736727050162,-500.0,0.0001054,2]
[348701354,1736727050172,-500.0,0.0001054,2]
[348701355,1736727050182,-307.6,0.0001054,2]
[348701356,1736727050191,-500.0,0.0001054,2]
[348701357,1736727050200,-500.0,0.0001054,2]
[348701358,1736727050209,-500.0,0.0001054,2]
[348701359,1736727050219,-500.0,0.0001054,2]
[348701360,1736727050229,-535.71847028,0.0001054,2]
[348701361,1736727050238,-500.0,0.0001054,2]
[348701362,1736727050247,-580.08,0.00010543,2]
[348701363,1736727050257,-500.0,0.00010543,2]
[348701364,1736727050268,-1568.76,0.00010543,2]
[348701365,1736727050277,-500.0,0.00010543,2]
[348701366,1736727050287,-500.0,0.00010543,2]
[348701367,1736727050299,-500.0,0.00010543,2]
[348701368,1736727050308,-500.0,0.00010543,2]
[348701369,1736727050318,-2014.15,0.00010543,2]
[348701370,1736727050327,-638.61,0.00010543,2]
[348701371,1736727050336,-500.0,0.00010543,2]
[348701372,1736727050345,-717.21,0.00010543,2]
[348701373,1736727050354,-801.38,0.00010543,2]
[348701374,1736727050364,-758.49,0.00010543,2]
[348701375,1736727050373,-500.0,0.00010543,2]
[348701376,1736727050382,-500.0,0.00010543,2]
[348701377,1736727050392,-680.21,0.00010543,2]
[348701378,1736727050403,-500.0,0.00010543,2]
[348701379,1736727050413,-500.0,0.00010543,2]
[348701380,1736727050423,-500.0,0.00010543,2]
[348701381,1736727050433,-500.0,0.00010543,2]
[348701382,1736727050443,-1390.21,0.00010543,2]
[348701383,1736727050452,-500.0,0.00010543,2]
[348701384,1736727050461,-500.0,0.00010543,2]
[348701385,1736727050471,-500.0,0.00010543,2]
[348701386,1736727050480,-500.0,0.00010543,2]
[348701387,1736727050489,-500.0,0.00010543,2]
[348701388,1736727050498,-500.0,0.00010543,2]
[348701389,1736727050507,-851.85,0.00010543,2]
[348701390,1736727050519,-500.0,0.00010543,2]
[348701391,1736727050528,-500.0,0.00010543,2]
[348701392,1736727050537,-503.63,0.00010543,2]
[348701393,1736727050546,-2088.29,0.00010543,2]
[348701394,1736727050555,-500.0,0.00010543,2]
[348701395,1736727050565,-500.0,0.00010543,2]
[348701396,1736727050574,-500.0,0.00010543,2]
[348701397,1736727050583,-2207.3,0.00010543,2]
[348701398,1736727050592,-500.0,0.00010543,2]
[348701399,1736727050601,-500.0,0.00010543,2]
[348701400,1736727050610,-500.0,0.00010543,2]
[348701401,1736727050619,-500.0,0.00010543,2]
[348701402,1736727050629,-500.0,0.00010543,2]
[348701403,1736727050637,-500.0,0.00010543,2]
[348701404,1736727050646,-500.0,0.00010543,2]
[348701405,1736727050655,-902.21,0.00010543,2]
[348701406,1736727050664,-548.52,0.00010543,2]
[348701407,1736727050678,-500.0,0.00010543,2]
[348701408,1736727050687,-500.0,0.00010543,2]
[348701409,1736727050696,-500.0,0.00010543,2]
[348701410,1736727050705,-2078.81,0.00010543,2]
[348701411,1736727050714,-500.0,0.00010543,2]
[348701412,1736727050723,-514.83,0.00010543,2]
[348701413,1736727050732,-500.0,0.00010543,2]
[348701414,1736727050741,-500.0,0.00010543,2]
[348701415,1736727050750,-500.0,0.00010543,2]
[348701416,1736727050759,-500.0,0.00010543,2]
[348701417,1736727050771,-500.0,0.00010543,2]
[348701418,1736727050781,-500.0,0.00010543,2]
[348701419,1736727050790,-607.65,0.00010543,2]
[348701420,1736727050799,-500.0,0.00010543,2]
[348701421,1736727050808,-500.0,0.00010543,2]
[348701422,1736727050817,-525.16226411,0.00010543,2]
[348701423,1736727050827,-586.8,0.00010543,2]
[348701424,1736727050836,-500.0,0.00010543,2]
[348701425,1736727050846,-500.0,0.00010543,2]
[348701426,1736727050855,-973.35,0.00010543,2]
[348701427,1736727050865,-500.0,0.00010543,2]
[348701428,1736727050874,-500.0,0.00010543,2]
[348701429,1736727050883,-767.01,0.00010543,2]
[348701430,1736727050892,-500.0,0.00010543,2]
[348701431,1736727050902,-562.52,0.00010543,2]
[348701432,1736727050911,-898.1,0.00010543,2]
[348701433,1736727050924,-1138.74,0.00010543,2]
[348701434,1736727050938,-500.0,0.00010543,2]
[348701435,1736727050950,-418.210191,0.00010544,2]
[348701436,1736727050962,-342.452523,0.00010544,2]
[348701437,1736727050974,-159.422232,0.00010544,2]
[348701438,1736727050985,-500.0,0.00010544,2]
[348701439,1736727050998,-500.0,0.00010544,2]
[348701440,1736727051012,-500.0,0.00010544,2]
[348701441,1736727051025,-500.0,0.00010544,2]
[348701442,1736727051035,-500.0,0.00010544,2]
[348701443,1736727051046,-500.0,0.00010544,2]
[348701444,1736727051059,-495.81721314,0.00010544,2]
[348701445,1736727051069,-500.0,0.00010544,2]
[348701446,1736727051079,-500.0,0.00010544,2]
[348701447,1736727051091,-500.0,0.00010544,2]
[348701448,1736727051105,-500.0,0.00010544,2]
[348701449,1736727051115,-500.0,0.00010544,2]
[348701450,1736727051125,-307.83475207,0.00010544,2]
[348701451,1736727051137,-500.0,0.00010544,2]
[348701452,1736727051148,-319.94169573,0.00010544,2]
[348701453,1736727051160,-264.68519224,0.00010544,2]
[348701454,1736727051172,-500.0,0.00010544,2]
[348701455,1736727051184,-500.0,0.00010544,2]
[348701456,1736727051195,-500.0,0.00010544,2]
[348701457,1736727051206,-500.0,0.00010544,2]
[348701458,1736727051218,-500.0,0.00010544,2]
[348701459,1736727051229,-500.0,0.00010544,2]
[348701460,1736727051240,-2051.84,0.00010544,2]
[348701461,1736727051252,-884.25,0.00010544,2]
[348701462,1736727051263,-1346.24,0.00010544,2]
[348701463,1736727051276,-530.04,0.00010544,2]
[348701464,1736727051286,-858.76,0.00010544,2]
[348701465,1736727051298,-500.0,0.00010544,2]
[348701466,1736727051310,-500.0,0.00010544,2]
[348701467,1736727051321,-1142.46,0.00010544,2]
[348701468,1736727051333,-500.0,0.00010544,2]
[348701469,1736727051346,-1264.75,0.00010545,2]
[348701470,1736727051359,-500.0,0.00010545,2]
[348701471,1736727051372,-526.79,0.00010545,2]
[348701472,1736727051385,-760.11,0.00010545,2]
[348701473,1736727051397,-823.3,0.00010545,2]
[348701474,1736727051410,-500.0,0.00010545,2]
[348701475,1736727051420,-668.36,0.00010545,2]
[348701476,1736727051430,-500.0,0.00010545,2]
[348701477,1736727051441,-1202.09,0.00010545,2]
[348701478,1736727051452,-1043.38,0.00010545,2]
[348701479,1736727051466,-774.84,0.00010547,2]
[348701480,1736727051479,-687.44,0.00010547,2]
[348701481,1736727051491,-500.0,0.00010547,2]
[348701482,1736727051501,-817.27,0.00010547,2]
[348701483,1736727051513,-907.21,0.00010547,2]
[348701484,1736727051523,-567.16,0.00010547,2]
[348701485,1736727051534,-960.51,0.00010547,2]
[348701486,1736727051545,-1054.29,0.00010547,2]
[348701487,1736727051558,-1009.53,0.00010547,2]
[348701488,1736727051569,-1489.54,0.00010547,2]
[348701489,1736727051580,-3214.17,0.00010547,2]
[348701490,1736727051590,-694.36,0.00010547,2]
[348701491,1736727051600,-500.0,0.00010547,2]
[348701492,1736727051611,-505.41,0.00010547,2]
[348701493,1736727051620,-393.58289821,0.00010566,2]
[348701494,1736727051631,-437.86,0.00010623,2]
[348701495,1736727051642,-2452.67248919,0.00010631,2]
[348701496,1736727051652,-1000.0,0.00010687,2]
[348701497,1736727051663,-300.0,0.00010738,2]
[348701498,1736727051678,-980.06,0.00010738,2]
[348701499,1736727051689,-980.06,0.00010738,2]
[348701500,1736727051700,-980.06,0.00010738,2]
[348701501,1736727051711,-1650.28,0.00010738,2]
[348701502,1736727051722,-820.12,0.00010738,2]
[348701503,1736727051732,-982.77188825,0.000108,2]
[348701504,1736727051743,-500.0,0.00010813,2]
[348701505,1736727051754,-927.13,0.00010813,2]
[348701506,1736727051766,-2502.78,0.00010813,2]
[348701507,1736727051777,-500.0,0.00010813,2]
[348701508,1736727051787,-522.99,0.00010813,2]
[348701509,1736727051798,-566.89,0.00010813,2]
[348701510,1736727051808,-893.8,0.00010813,2]
[348701511,1736727051820,-1970.36,0.00010813,2]
[348701512,1736727051831,-500.0,0.00010813,2]
[348701513,1736727051842,-1370.66,0.00010813,2]
[348701514,1736727051853,-539.57,0.00010813,2]
[348701515,1736727051863,-1331.9,0.00010813,2]
[348701516,1736727051874,-964.02,0.00010813,2]
[348701517,1736727051884,-500.0,0.00010813,2]
[348701518,1736727051895,-500.0,0.00010813,2]
[348701519,1736727051906,-880.61,0.00010813,2]
[348701520,1736727051917,-209.21,0.00010813,2]
[348701521,1736727051927,-500.0,0.00010813,2]
[348701522,1736727051938,-562.92,0.00010813,2]
[348701523,1736727051948,-1494.44,0.00010813,2]
[348701524,1736727051959,-628.89,0.00010813,2]
[348701525,1736727051972,-500.0,0.00010813,2]
[348701526,1736727051982,-820.76,0.00010813,2]
[348701527,1736727051992,-612.88,0.00010813,2]
[348701528,1736727052002,-500.0,0.00010813,2]
[348701529,1736727052014,-500.0,0.00010813,2]
[348701530,1736727052024,-1027.38,0.00010813,2]
[348701531,1736727052036,-541.32,0.00010813,2]
[348701532,1736727052046,-598.5,0.00010813,2]
[348701533,1736727052068,-500.0,0.00010813,2]
[348701534,1736727052082,-500.0,0.00010813,2]
[348701535,1736727052095,-534.57,0.00010813,2]
[348701536,1736727052108,-538.66,0.00010813,2]
[348701537,1736727052120,-628.2,0.00010813,2]
[348701538,1736727052133,-500.0,0.00010813,2]
[348701539,1736727052146,-524.03,0.00010813,2]
[348701540,1736727052159,-1147.37,0.00010813,2]
[348701541,1736727052171,-500.0,0.00010814,2]
[348701542,1736727052184,-500.0,0.00010814,2]
[348701543,1736727052197,-500.0,0.00010814,2]
[348701544,1736727052208,-504.02,0.00010814,2]
[348701545,1736727052219,-500.0,0.00010814,2]
[348701546,1736727052231,-500.0,0.00010814,2]
[348701547,1736727052242,-500.0,0.00010814,2]
[348701548,1736727052254,-500.0,0.00010814,2]
[348701549,1736727052267,-500.0,0.00010814,2]
[348701550,1736727052278,-194.35736989,0.00010814,2]
[348701551,1736727052290,-500.0,0.00010814,2]
[348701552,1736727052300,-420.76662732,0.00010814,2]
[348701553,1736727052312,-500.0,0.00010814,2]
[348701554,1736727052323,-552.26890889,0.00010814,2]
[348701555,1736727052333,-500.0,0.00010814,2]
[348701556,1736727052344,-500.0,0.00010814,2]
[348701557,1736727052355,-500.0,0.00010814,2]
[348701558,1736727052365,-500.0,0.00010814,2]
[348701559,1736727052376,-500.0,0.00010814,2]
[348701560,1736727052387,-500.0,0.00010814,2]